fUSD/lending_fUSD_20240318
["ID","MTS","AMOUNT","RATE_DAILY","PERIOD"]
[319474304,1710799889069,-500.0,0.00022739,2]
[319474305,1710799889078,-1092.65,0.00022739,2]
[319474306,1710799889087,-154.64238338,0.00022739,2]
[319474307,1710799889096,-1234.18,0.00022739,2]
[319474308,1710799889105,-775.21,0.00022739,2]
[319474309,1710799889115,-1640.92,0.00022739,2]
[319474310,1710799889124,-660.8,0.00022739,2]
[319474311,1710799889133,-520.66,0.00022739,2]
[319474312,1710799889142,-500.0,0.00022739,2]
[319474313,1710799889151,-618.02,0.00022739,2]
[319474314,1710799889160,-500.0,0.00022739,2]
[319474315,1710799889169,-500.0,0.00022739,2]
[319474316,1710799889178,-2991.4,0.00022739,2]
[319474317,1710799889186,-526.67,0.00022739,2]
[319474318,1710799889196,-500.0,0.00022739,2]
[319474319,1710799889205,-3432.69,0.00022739,2]
[319474320,1710799889214,-929.21,0.00022739,2]
[319474321,1710799889223,-500.0,0.00022739,2]
[319474322,1710799889232,-2512.6,0.00022739,2]
[319474323,1710799889241,-500.0,0.00022739,2]
[319474324,1710799889250,-553.17,0.00022739,2]
[319474325,1710799889259,-632.91,0.00022739,2]
[319474326,1710799889268,-500.0,0.00022739,2]
[319474327,1710799889277,-587.03,0.00022739,2]
[319474328,1710799889286,-500.0,0.00022739,2]
[319474329,1710799889295,-500.0,0.00022739,2]
[319474330,1710799889304,-500.0,0.00022739,2]
[319474331,1710799889314,-500.0,0.00022739,2]
[319474332,1710799889323,-1670.28,0.00022739,2]
[319474333,1710799889332,-588.94,0.00022739,2]
[319474334,1710799889341,-778.13,0.00022739,2]
[319474335,1710799889350,-1508.72,0.00022739,2]
[319474336,1710799889359,-500.0,0.00022739,2]
[319474337,1710799889368,-992.88,0.00022739,2]
[319474338,1710799889379,-2672.81,0.00022739,2]
[319474339,1710799889387,-1421.34,0.00022739,2]
[319474340,1710799889397,-500.0,0.00022739,2]
[319474341,1710799889406,-1479.34,0.00022739,2]
[319474342,1710799889415,-1591.7,0.00022739,2]
[319474343,1710799889424,-549.69,0.00022739,2]
[319474344,1710799889434,-500.0,0.00022739,2]
[319474345,1710799889443,-500.0,0.00022739,2]
[319474346,1710799889452,-1096.72,0.00022739,2]
[319474347,1710799889461,-500.0,0.00022739,2]
[319474348,1710799889474,-500.0,0.00022739,2]
[319474349,1710799889484,-2210.21,0.00022739,2]
[319474350,1710799889493,-1855.24,0.00022739,2]
[319474351,1710799889502,-869.7,0.00022739,2]
[319474352,1710799889512,-500.0,0.00022739,2]
[319474353,1710799889521,-1181.58,0.00022739,2]
[319474354,1710799889531,-1747.53,0.00022739,2]
[319474355,1710799889540,-680.92,0.00022739,2]
[319474356,1710799889550,-417.585999,0.00022739,7]
[319474357,1710799889559,-500.0,0.00022739,2]
[319474358,1710799889569,-417.585999,0.00022739,7]
[319474359,1710799889582,-665.42,0.00022739,2]
[319474360,1710799889591,-500.0,0.00022739,2]
[319474361,1710799889601,-500.0,0.00022739,2]
[319474362,1710799889610,-417.585999,0.00022739,7]
[319474363,1710799889621,-417.585999,0.00022739,7]
[319474364,1710799889631,-1501.92,0.00022739,2]
[319474365,1710799889640,-2323.42,0.00022739,2]
[319474366,1710799889650,-2355.45,0.00022739,2]
[319474367,1710799889659,-2348.13,0.00022739,2]
[319474368,1710799889669,-500.0,0.00022739,2]
[319474369,1710799889678,-1841.43,0.00022739,2]
[319474370,1710799889687,-500.0,0.00022739,2]
[319474371,1710799889697,-633.95,0.00022739,2]
[319474372,1710799889706,-2789.32,0.00022739,2]
[319474373,1710799889716,-1047.26,0.00022739,2]
[319474374,1710799889725,-500.0,0.00022739,2]
[319474375,1710799889734,-500.0,0.00022739,2]
[319474376,1710799889744,-500.0,0.00022739,2]
[319474377,1710799889753,-506.7,0.00022739,2]
[319474378,1710799889763,-500.0,0.00022739,2]
[319474379,1710799889772,-2028.96,0.00022739,2]
[319474380,1710799889782,-727.29,0.00022739,2]
[319474381,1710799889791,-499.012743,0.00022739,7]
[319474382,1710799889801,-499.012743,0.00022739,7]
[319474383,1710799889810,-500.0,0.00022739,2]
[319474384,1710799889819,-1121.74,0.00022739,2]
[319474385,1710799889828,-500.0,0.00022739,2]
[319474386,1710799889838,-500.0,0.00022739,2]
[319474387,1710799889847,-499.012743,0.00022739,7]
[319474388,1710799889857,-499.012743,0.00022739,7]
[319474389,1710799889866,-151.0,0.00022739,7]
[319474390,1710799889877,-1964.52,0.00022739,2]
[319474391,1710799889886,-500.0,0.00022739,2]
[319474392,1710799889895,-151.0,0.00022739,7]
[319474393,1710799889905,-800.57,0.00022739,2]
[319474394,1710799889914,-151.0,0.00022739,7]
[319474395,1710799889923,-151.0,0.00022739,7]
[319474396,1710799889932,-855.83,0.00022739,2]
[319474397,1710799889941,-500.0,0.00022739,2]
[319474398,1710799889950,-500.0,0.00022739,2]
[319474399,1710799889960,-500.0,0.00022739,2]
[319474400,1710799889969,-515.18,0.00022739,2]
[319474401,1710799889978,-151.0,0.00022739,7]
[319474402,1710799889987,-151.0,0.00022739,7]
[319474403,1710799889996,-805.44,0.00022739,2]
[319474404,1710799890009,-1465.25,0.00022739,2]
[319474405,1710799890019,-500.0,0.00022739,2]
[319474406,1710799890028,-703.59,0.00022739,2]
[319474407,1710799890037,-1137.55,0.00022739,2]
[319474408,1710799890047,-1372.51,0.00022739,2]
[319474409,1710799890056,-500.0,0.00022739,2]
[319474410,1710799890066,-1311.42,0.00022739,2]
[319474411,1710799890075,-693.23,0.00022739,2]
[319474412,1710799890084,-890.31,0.00022739,2]
[319474413,1710799890094,-606.63,0.00022739,2]
[319474414,1710799890104,-1355.8,0.00022739,2]
[319474415,1710799890113,-633.23,0.00022739,2]
[319474416,1710799890123,-500.0,0.00022739,2]
[319474417,1710799890132,-931.19,0.00022739,2]
[319474418,1710799890143,-1311.22,0.00022739,2]
[319474419,1710799890154,-500.0,0.00022739,2]
[319474420,1710799890164,-931.2,0.00022739,2]
[319474421,1710799890173,-500.0,0.00022739,2]
[319474422,1710799890182,-500.0,0.00022739,2]
[319474423,1710799890191,-560.88,0.00022739,2]
[319474424,1710799890200,-578.22,0.00022739,2]
[319474425,1710799890210,-1373.23,0.00022739,2]
[319474426,1710799890219,-625.07958671,0.00022739,2]
[319474427,1710799890228,-500.0,0.00022739,2]
[319474428,1710799890237,-1189.08,0.00022739,2]
[319474429,1710799890246,-582.88,0.00022739,2]
[319474430,1710799890256,-500.0,0.00022739,2]
[319474431,1710799890265,-807.67,0.00022739,2]
[319474432,1710799890274,-500.0,0.00022739,2]
[319474433,1710799890283,-500.0,0.00022739,2]
[319474434,1710799890292,-500.0,0.00022739,2]
[319474435,1710799890301,-344.04213268,0.00022739,2]
[319474436,1710799890311,-500.0,0.00022739,2]
[319474437,1710799890320,-1318.07,0.00022739,2]
[319474438,1710799890329,-667.48,0.00022739,2]
[319474439,1710799890339,-2537.59,0.00022739,2]
[319474440,1710799890348,-1833.13,0.00022739,2]
[319474441,1710799890358,-500.0,0.00022739,2]
[319474442,1710799890367,-500.0,0.00022739,2]
[319474443,1710799890378,-584.63,0.00022739,2]
[319474444,1710799890387,-922.71,0.00022739,2]
[319474445,1710799890397,-522.08,0.00022739,2]
[319474446,1710799890406,-1186.68,0.00022739,2]
[319474447,1710799890415,-500.0,0.00022739,2]
[319474448,1710799890427,-204.88697208,0.00022739,2]
[319474449,1710799890436,-500.0,0.00022739,2]
[319474450,1710799890447,-500.0,0.00022739,2]
[319474451,1710799890456,-797.09,0.00022739,2]
[319474452,1710799890465,-1847.99,0.00022739,2]
[319474453,1710799890475,-998.55,0.00022739,2]
[319474454,1710799890485,-172.732054,0.00022739,7]
[319474455,1710799890494,-172.732054,0.00022739,7]
[319474456,1710799890504,-500.0,0.00022739,2]
[319474457,1710799890514,-500.0,0.00022739,2]
[319474458,1710799890523,-500.0,0.00022739,2]
[319474459,1710799890533,-500.0,0.00022739,2]
[319474460,1710799890542,-172.732054,0.00022739,7]
[319474461,1710799890556,-172.732054,0.00022739,7]
[319474462,1710799890565,-1079.26,0.00022739,2]
[319474463,1710799890577,-1856.02,0.00022739,2]
[319474464,1710799890586,-1418.3,0.00022739,2]
[319474465,1710799890595,-1186.25,0.00022739,2]
[319474466,1710799890604,-897.94,0.00022739,2]
[319474467,1710799890615,-844.5,0.00022739,2]
[319474468,1710799890626,-500.0,0.00022739,2]
[319474469,1710799890637,-500.0,0.00022739,2]
[319474470,1710799890646,-1228.33,0.00022739,2]
[319474471,1710799890657,-500.0,0.00022739,2]
[319474472,1710799890667,-656.86,0.00022739,2]
[319474473,1710799890676,-151.0,0.00022739,7]
[319474474,1710799890685,-151.0,0.00022739,7]
[319474475,1710799890695,-1254.05,0.00022739,2]
[319474476,1710799890704,-151.0,0.00022739,7]
[319474477,1710799890713,-151.0,0.00022739,7]
[319474478,1710799890722,-1220.28,0.00022739,2]
[319474479,1710799890730,-500.0,0.00022739,2]
[319474480,1710799890740,-524.26,0.00022739,2]
[319474481,1710799890749,-544.86,0.00022739,2]
[319474482,1710799890758,-1112.38,0.00022739,2]
[319474483,1710799890767,-1554.62,0.00022739,2]
[319474484,1710799890777,-500.0,0.00022739,2]
[319474485,1710799890788,-1046.24,0.00022739,2]
[319474486,1710799890798,-500.0,0.00022739,2]
[319474487,1710799890807,-990.25,0.00022739,2]
[319474488,1710799890816,-500.0,0.00022739,2]
[319474489,1710799890826,-525.88,0.00022739,2]
[319474490,1710799890836,-615.98,0.00022739,2]
[319474491,1710799890845,-1017.43,0.00022739,2]
[319474492,1710799890855,-412.55780535,0.00022739,2]
[319474493,1710799890864,-500.0,0.00022739,2]
[319474494,1710799890875,-500.0,0.00022739,2]
[319474495,1710799890885,-505.71884954,0.00022739,2]
[319474496,1710799890894,-1155.33,0.00022739,2]
[319474497,1710799890904,-3244.32,0.00022739,2]
[319474498,1710799890913,-527.83,0.00022739,2]
[319474499,1710799890923,-500.0,0.00022739,2]
[319474500,1710799890932,-1754.86,0.00022739,2]
[319474501,1710799890942,-1859.5,0.00022739,2]
[319474502,1710799890951,-301.6282293,0.00022739,2]
[319474503,1710799890960,-721.17,0.00022739,2]
[319474504,1710799890969,-1204.75,0.00022739,2]
[319474505,1710799890978,-1304.47,0.00022739,2]
[319474506,1710799890988,-500.0,0.00022739,2]
[319474507,1710799890997,-1387.32,0.00022739,2]
[319474508,1710799891006,-1084.75,0.00022739,2]
[319474509,1710799891015,-984.35,0.00022739,2]
[319474510,1710799891024,-500.0,0.00022739,2]
[319474511,1710799891033,-500.0,0.00022739,2]
[319474512,1710799891043,-500.0,0.00022739,2]
[319474513,1710799891053,-500.0,0.00022739,2]
[319474514,1710799891063,-500.0,0.00022739,2]
[319474515,1710799891072,-500.0,0.00022739,2]
[319474516,1710799891081,-1042.11,0.00022739,2]
[319474517,1710799891091,-550.03,0.00022739,2]
[319474518,1710799891101,-500.0,0.00022739,2]
[319474519,1710799891110,-500.0,0.00022739,2]
[319474520,1710799891119,-500.0,0.00022739,2]
[319474521,1710799891130,-1980.05,0.00022739,2]
[319474522,1710799891141,-3263.23,0.00022739,2]
[319474523,1710799891150,-1006.81,0.00022739,2]
[319474524,1710799891160,-1334.24,0.00022739,2]
[319474525,1710799891170,-500.0,0.00022739,2]
[319474526,1710799891179,-500.0,0.00022739,2]
[319474527,1710799891188,-879.01,0.00022739,2]
[319474528,1710799891198,-500.0,0.00022739,2]
[319474529,1710799891207,-772.45,0.00022739,2]
[319474530,1710799891216,-577.06,0.00022739,2]
[319474531,1710799891225,-1289.15,0.00022739,2]
[319474532,1710799891234,-500.0,0.00022739,2]
[319474533,1710799891243,-500.0,0.00022739,2]
[319474534,1710799891253,-500.0,0.00022739,2]
[319474535,1710799891262,-1162.86,0.00022739,2]
[319474536,1710799891272,-500.0,0.00022739,2]
[319474537,1710799891281,-539.59,0.00022739,2]
[319474538,1710799891292,-500.0,0.00022739,2]
[319474539,1710799891302,-1284.59,0.00022739,2]
[319474540,1710799891311,-1343.86,0.00022739,2]
[319474541,1710799891320,-2423.47,0.00022739,2]
[319474542,1710799891330,-500.0,0.00022739,2]
[319474543,1710799891339,-790.0,0.00022739,2]
[319474544,1710799891349,-1561.78,0.00022739,2]
[319474545,1710799891359,-2345.93,0.00022739,2]
[319474546,1710799891369,-1543.03,0.00022739,2]
[319474547,1710799891379,-500.0,0.00022739,2]
[319474548,1710799891389,-688.89,0.00022739,2]
[319474549,1710799891398,-500.0,0.00022739,2]
[319474550,1710799891408,-500.0,0.00022739,2]
[319474551,1710799891418,-1604.71,0.00022739,2]
[319474552,1710799891428,-500.0,0.00022739,2]
[319474553,1710799891438,-500.0,0.00022739,2]
[319474554,1710799891448,-779.42,0.00022739,2]
[319474555,1710799891457,-500.0,0.00022739,2]
[319474556,1710799891467,-500.0,0.00022739,2]
[319474557,1710799891477,-1455.91,0.00022739,2]
[319474558,1710799891486,-964.51,0.00022739,2]
[319474559,1710799891496,-500.0,0.00022739,2]
[319474560,1710799891507,-865.84,0.00022739,2]
[319474561,1710799891517,-500.0,0.00022739,2]
[319474562,1710799891527,-500.0,0.00022739,2]
[319474563,1710799891538,-500.0,0.00022739,2]
[319474564,1710799891547,-1883.82,0.00022739,2]
[319474565,1710799891557,-1347.47,0.00022739,2]
[319474566,1710799891570,-500.0,0.00022739,2]
[319474567,1710799891581,-615.15,0.00022739,2]
[319474568,1710799891591,-500.0,0.00022739,2]
[319474569,1710799891601,-500.0,0.00022739,2]
[319474570,1710799891612,-500.0,0.00022739,2]
[319474571,1710799891623,-743.05,0.00022739,2]
[319474572,1710799891633,-500.0,0.00022739,2]
[319474573,1710799891643,-1288.43,0.00022739,2]
[319474574,1710799891655,-1050.86,0.00022739,2]
[319474575,1710799891666,-532.05,0.00022739,2]
[319474576,1710799891675,-568.35,0.00022739,2]
[319474577,1710799891685,-500.0,0.00022739,2]
[319474578,1710799891694,-500.0,0.00022739,2]
[319474579,1710799891704,-500.0,0.00022739,2]
[319474580,1710799891714,-500.0,0.00022739,2]
[319474581,1710799891723,-500.0,0.00022739,2]
[319474582,1710799891733,-500.0,0.00022739,2]
[319474583,1710799891743,-801.95,0.00022739,2]
[319474584,1710799891752,-500.0,0.00022739,2]
[319474585,1710799891762,-3692.13,0.00022739,2]
[319474586,1710799891772,-1387.79,0.00022739,2]
[319474587,1710799891781,-1021.88,0.00022739,2]
[319474588,1710799891790,-500.0,0.00022739,2]
[319474589,1710799891800,-500.0,0.00022739,2]
[319474590,1710799891809,-1736.34,0.00022739,2]
[319474591,1710799891819,-500.0,0.00022739,2]
[319474592,1710799891828,-2682.4,0.00022739,2]
[319474593,1710799891838,-722.05,0.00022739,2]
[319474594,1710799891847,-314.86656083,0.00022739,2]
[319474595,1710799891856,-500.0,0.00022739,2]
[319474596,1710799891865,-917.72,0.00022739,2]
[319474597,1710799891874,-611.05913243,0.00022739,2]
[319474598,1710799891883,-1582.16,0.00022739,2]
[319474599,1710799891892,-500.0,0.00022739,2]
[319474600,1710799891901,-501.44786807,0.00022739,2]
[319474601,1710799891910,-500.0,0.00022739,2]
[319474602,1710799891919,-500.0,0.00022739,2]
[319474603,1710799891929,-500.0,0.00022739,2]
[319474604,1710799891938,-500.0,0.00022739,2]
[319474605,1710799891947,-500.0,0.00022739,2]
[319474606,1710799891956,-500.0,0.00022739,2]
[319474607,1710799891966,-500.0,0.00022739,2]
[319474608,1710799891975,-500.0,0.00022739,2]
[319474609,1710799891984,-500.0,0.00022739,2]
[319474610,1710799891993,-500.0,0.00022739,2]
[319474611,1710799892003,-899.67,0.00022739,2]
[319474612,1710799892012,-500.0,0.00022739,2]
[319474613,1710799892021,-1197.99,0.00022739,2]
[319474614,1710799892031,-2570.57,0.00022739,2]
[319474615,1710799892040,-832.49,0.00022739,2]
[319474616,1710799892049,-501.23254654,0.00022739,2]
[319474617,1710799892059,-500.0,0.00022739,2]
[319474618,1710799892069,-500.0,0.00022739,2]
[319474619,1710799892078,-500.0,0.00022739,2]
[319474620,1710799892088,-500.0,0.00022739,2]
[319474621,1710799892098,-352.31076712,0.00022739,2]
[319474622,1710799892107,-2336.68,0.00022739,2]
[319474623,1710799892116,-714.57,0.00022739,2]
[319474624,1710799892127,-500.0,0.00022739,2]
[319474625,1710799892136,-572.14,0.00022739,2]
[319474626,1710799892145,-500.0,0.00022739,2]
[319474627,1710799892404,-570.84,0.00022739,2]
[319474628,1710799892416,-500.0,0.00022739,2]
[319474629,1710799892426,-1267.22,0.00022739,2]
[319474630,1710799892436,-500.0,0.00022739,2]
[319474631,1710799892446,-713.53,0.00022739,2]
[319474632,1710799892456,-1986.27,0.00022739,2]
[319474633,1710799892466,-500.0,0.00022739,2]
[319474634,1710799892476,-500.0,0.00022739,2]
[319474635,1710799892486,-500.0,0.00022739,2]
[319474636,1710799892496,-1031.5,0.00022739,2]
[319474637,1710799892506,-500.0,0.00022739,2]
[319474638,1710799892516,-441.41711849,0.00022739,2]
[319474639,1710799892525,-500.0,0.00022739,2]
[319474640,1710799892535,-500.0,0.00022739,2]
[319474641,1710799892545,-500.0,0.00022739,2]
[319474642,1710799892555,-1487.73,0.00022739,2]
[319474643,1710799892565,-500.0,0.00022739,2]
[319474644,1710799892578,-1462.06,0.00022739,2]
[319474645,1710799892587,-500.0,0.00022739,2]
[319474646,1710799892597,-2831.64,0.00022739,2]
[319474647,1710799892606,-500.0,0.00022739,2]
[319474648,1710799892617,-1113.91,0.00022739,2]
[319474649,1710799892628,-662.67,0.00022739,2]
[319474650,1710799892637,-1374.98,0.00022739,2]
[319474651,1710799892648,-500.0,0.00022739,2]
[319474652,1710799892658,-2453.88,0.00022739,2]
[319474653,1710799892668,-584.72,0.00022739,2]
[319474654,1710799892677,-500.0,0.00022739,2]
[319474655,1710799892687,-1349.99,0.00022739,2]
[319474656,1710799892696,-500.0,0.00022739,2]
[319474657,1710799892706,-1580.15,0.00022739,2]
[319474658,1710799892716,-500.0,0.00022739,2]
[319474659,1710799892726,-1466.21,0.00022739,2]
[319474660,1710799892736,-500.0,0.00022739,2]
[319474661,1710799892745,-1118.72,0.00022739,2]
[319474662,1710799892755,-500.0,0.00022739,2]
[319474663,1710799892765,-606.91,0.00022739,2]
[319474664,1710799892775,-500.0,0.00022739,2]
[319474665,1710799892784,-1958.41,0.00022739,2]
[319474666,1710799892794,-605.4,0.00022739,2]
[319474667,1710799892805,-500.0,0.00022739,2]
[319474668,1710799892814,-500.0,0.00022739,2]
[319474669,1710799892823,-500.0,0.00022739,2]
[319474670,1710799892833,-500.0,0.00022739,2]
[319474671,1710799892843,-942.42,0.00022739,2]
[319474672,1710799892853,-500.0,0.00022739,2]
[319474673,1710799892862,-569.15,0.00022739,2]
[319474674,1710799892872,-941.12,0.00022739,2]
[319474675,1710799892881,-1400.41,0.00022739,2]
[319474676,1710799892891,-500.0,0.00022739,2]
[319474677,1710799892900,-500.0,0.00022739,2]
[319474678,1710799892910,-500.0,0.00022739,2]
[319474679,1710799892919,-500.0,0.00022739,2]
[319474680,1710799892930,-500.0,0.00022739,2]
[319474681,1710799892940,-1781.44,0.00022739,2]
[319474682,1710799892949,-151.0,0.00022739,7]
[319474683,1710799892959,-151.0,0.00022739,7]
[319474684,1710799892969,-500.0,0.00022739,2]
[319474685,1710799892978,-500.0,0.00022739,2]
[319474686,1710799892987,-1912.95,0.00022739,2]
[319474687,1710799892997,-713.68,0.00022739,2]
[319474688,1710799893007,-1203.57,0.00022739,2]
[319474689,1710799893017,-905.72,0.00022739,2]
[319474690,1710799893027,-171.85244,0.00022739,7]
[319474691,1710799893037,-500.0,0.00022739,2]
[319474692,1710799893047,-500.0,0.00022739,2]
[319474693,1710799893058,-4393.41,0.00022739,2]
[319474694,1710799893068,-2303.75,0.00022739,2]
[319474695,1710799893078,-500.0,0.00022739,2]
[319474696,1710799893089,-1401.22,0.00022739,2]
[319474697,1710799893098,-1144.14,0.00022739,2]
[319474698,1710799893108,-1229.49,0.00022739,2]
[319474699,1710799893117,-511.29,0.00022739,2]
[319474700,1710799893128,-500.0,0.00022739,2]
[319474701,1710799893138,-1432.28,0.00022739,2]
[319474702,1710799893147,-500.0,0.00022739,2]
[319474703,1710799893157,-500.0,0.00022739,2]
[319474704,1710799893166,-516.82,0.00022739,2]
[319474705,1710799893176,-500.0,0.00022739,2]
[319474706,1710799893185,-500.0,0.00022739,2]
[319474707,1710799893195,-1305.33,0.00022739,2]
[319474708,1710799893204,-581.47,0.00022739,2]
[319474709,1710799893214,-678.53,0.00022739,2]
[319474710,1710799893224,-737.52,0.00022739,2]
[319474711,1710799893233,-1022.21,0.00022739,2]
[319474712,1710799893243,-500.0,0.00022739,2]
[319474713,1710799893252,-1654.91,0.00022739,2]
[319474714,1710799893262,-500.0,0.00022739,2]
[319474715,1710799893271,-302.990116,0.00022739,7]
[319474716,1710799893281,-302.990116,0.00022739,7]
[319474717,1710799893290,-158.94123333,0.00022739,2]
[319474718,1710799893299,-500.0,0.00022739,2]
[319474719,1710799893309,-302.990116,0.00022739,7]
[319474720,1710799893317,-745.31,0.00022739,2]
[319474721,1710799893327,-302.990116,0.00022739,7]
[319474722,1710799893336,-500.0,0.00022739,2]
[319474723,1710799893346,-7202.93,0.00022739,2]
[319474724,1710799893355,-20689.66,0.00022739,2]
[319474725,1710799893367,-2992.02,0.00022739,2]
[319474726,1710799893379,-500.0,0.00022739,2]
[319474727,1710799893389,-1157.8,0.00022739,2]
[319474728,1710799893398,-638.22,0.00022739,2]
[319474729,1710799893407,-500.0,0.00022739,2]
[319474730,1710799893417,-1110.24,0.00022739,2]
[319474731,1710799893427,-1088.66,0.00022739,2]
[319474732,1710799893437,-1090.38,0.00022739,2]
[319474733,1710799893446,-1367.92,0.00022739,2]
[319474734,1710799893456,-500.0,0.00022739,2]
[319474735,1710799893465,-500.0,0.00022739,2]
[319474736,1710799893476,-8212.3,0.00022739,2]
[319474737,1710799893486,-500.0,0.00022739,2]
[319474738,1710799893495,-6843.13,0.00022739,2]
[319474739,1710799893505,-1716.46,0.00022739,2]
[319474740,1710799893515,-640.557938,0.00022739,7]
[319474741,1710799893525,-640.557938,0.00022739,7]
[319474742,1710799893534,-1412.21,0.00022739,2]
[319474743,1710799893543,-500.0,0.00022739,2]
[319474744,1710799893553,-500.0,0.00022739,2]
[319474745,1710799893563,-622.92,0.00022739,2]
[319474746,1710799893574,-605.07,0.00022739,2]
[319474747,1710799893584,-640.557938,0.00022739,7]
[319474748,1710799893593,-640.557938,0.00022739,7]
[319474749,1710799893603,-500.0,0.00022739,2]
[319474750,1710799893613,-738.47,0.00022739,2]
[319474751,1710799893624,-1814.94,0.00022739,2]
[319474752,1710799893634,-2375.9,0.00022739,2]
[319474753,1710799893644,-642.05,0.00022739,2]
[319474754,1710799893655,-720.26,0.00022739,2]
[319474755,1710799893666,-500.0,0.00022739,2]
[319474756,1710799893675,-500.0,0.00022739,2]
[319474757,1710799893684,-500.0,0.00022739,2]
[319474758,1710799893694,-7701.15,0.00022739,2]
[319474759,1710799893704,-2621.03,0.00022739,2]
[319474760,1710799893713,-70618.05,0.00022739,2]
[319474761,1710799893722,-1283.55,0.00022739,2]
[319474762,1710799893731,-500.0,0.00022739,2]
[319474763,1710799893742,-867.51,0.00022739,2]
[319474764,1710799893750,-500.0,0.00022739,2]
[319474765,1710799893759,-933.88,0.00022739,2]
[319474766,1710799893769,-500.0,0.00022739,2]
[319474767,1710799893779,-651.4,0.00022739,2]
[319474768,1710799893789,-1968.24,0.00022739,2]
[319474769,1710799893798,-1507.28,0.00022739,2]
[319474770,1710799893807,-500.0,0.00022739,2]
[319474771,1710799893817,-500.0,0.00022739,2]
[319474772,1710799893826,-15625.12,0.00022739,2]
[319474773,1710799893835,-500.0,0.00022739,2]
[319474774,1710799893844,-2930.24,0.00022739,2]
[319474775,1710799893853,-500.0,0.00022739,2]
[319474776,1710799893863,-386.07,0.00022739,2]
[319474777,1710799893874,-500.0,0.00022739,2]
[319474778,1710799893883,-500.0,0.00022739,2]
[319474779,1710799893892,-908.19,0.00022739,2]
[319474780,1710799893901,-836.99,0.00022739,2]
[319474781,1710799893910,-1649.1,0.00022739,2]
[319474782,1710799893919,-500.0,0.00022739,2]
[319474783,1710799893929,-3638.93,0.00022739,2]
[319474784,1710799893938,-1000.59,0.00022739,2]
[319474785,1710799893947,-500.0,0.00022739,2]
[319474786,1710799893956,-500.0,0.00022739,2]
[319474787,1710799893965,-2240.25,0.00022739,2]
[319474788,1710799893974,-500.0,0.00022739,2]
[319474789,1710799893982,-500.0,0.00022739,2]
[319474790,1710799893992,-500.0,0.00022739,2]
[319474791,1710799894001,-500.0,0.00022739,2]
[319474792,1710799894010,-876.56,0.00022739,2]
[319474793,1710799894019,-500.0,0.00022739,2]
[319474794,1710799894029,-1827.91,0.00022739,2]
[319474795,1710799894037,-500.0,0.00022739,2]
[319474796,1710799894047,-2226.67,0.00022739,2]
[319474797,1710799894057,-4659.24,0.00022739,2]
[319474798,1710799894066,-500.0,0.00022739,2]
[319474799,1710799894075,-500.0,0.00022739,2]
[319474800,1710799894084,-500.0,0.00022739,2]
[319474801,1710799894094,-3729.26,0.00022739,2]
[319474802,1710799894103,-3606.56,0.00022739,2]
[319474803,1710799894112,-500.0,0.00022739,2]